Cogmind - Beta 16.1 @@@ ROGUE MODE // 2026.04.13 @ 21:03:26 Player: ae Result: Escaped! Performance ------------- Evolutions (9) 4500 Regions Visited (16) 3200 Robots Destroyed (95) 475 Value Destroyed (1420) 1420 Prototype IDs (45) 900 Alien Tech Used (0) 0 Bonus (6152) 6152 TOTAL SCORE: 16647 Bonus ------- Follower Combat Kills 144 Entered DSFs 1000 Aligned with FarCom 300 Win 3000 Win Speed 1708 Cogmind --------- Core Integrity 1427/1600 Matter 242/300 Energy 185/200 System Corruption 4% Temperature Cool (25) Movement Flying (23) Location To Epsilon Eridani Parts ------- > --- POWER (2) -------- Micro Nuclear Core Micro Antimatter Reactor > --- PROPULSION (7) --- Improved VTOL Module Biomechanical Wings Impulse Thruster Cooled Field Propulsion Drive Diametric Drive Impulse Thruster Array > --- UTILITY (14) ----- Scrap Suit Medium Storage Unit Structural Scanner Enhanced Optical Array Advanced Terrain Scan Processor Advanced Melee Analysis Suite Advanced Reaction Control System Centrium Light Armor Plating Centrium Light Armor Plating Hacking Suite Hacking Suite Improved Hacking Suite Improved System Shield > --- WEAPON (2) ------- Force Lance > --- INVENTORY (10) --- Long-range Terrain Scanner Stasis Canceller Centrium Light Armor Plating Enhanced Hardcell Cannon Compact Tesla Bomb Launcher Mini Grenade Launcher Peak State ------------ > --- POWER ------------ Micro Nuclear Core Micro Antimatter Reactor > --- PROPULSION ------- Improved VTOL Module Biomechanical Wings Impulse Thruster Cooled Field Propulsion Drive Diametric Drive Impulse Thruster Array > --- UTILITY ---------- Scrap Suit Medium Storage Unit Structural Scanner Enhanced Optical Array Advanced Terrain Scan Processor Advanced Melee Analysis Suite Advanced Reaction Control System Centrium Light Armor Plating Centrium Light Armor Plating Hacking Suite Hacking Suite Improved Hacking Suite Improved System Shield > --- WEAPON ----------- Enhanced Hardcell Cannon Force Lance > --- INVENTORY -------- Long-range Terrain Scanner Stasis Canceller Centrium Light Armor Plating Compact Tesla Bomb Launcher Mini Grenade Launcher [Rating: 145] Favorites ----------- Power Micro Nuclear Core Engine Light Ion Engine Power Core Micro Nuclear Core Reactor Micro Antimatter Reactor Propulsion Flight Unit Treads Light Treads Flight Unit Flight Unit Utility Hacking Suite Device Scrap Suit Storage Medium Storage Unit Processor Advanced Terrain Scan Processor Hackware Hacking Suite Protection Centrium Light Armor Plating Weapon Scythe Energy Gun Small Laser Energy Cannon Long-range Proton Cannon Ballistic Gun Light Assault Rifle Ballistic Cannon Enhanced Hardcell Cannon Launcher Mini Grenade Launcher Impact Weapon Heavy Mace Slashing Weapon Scythe Piercing Weapon Force Lance Build | -11 -10 -10 -9 -9 -9 -8 -8 -7 -6 -5 -5 -4 -3 -3 -2 -1 ------- Run | Yrd Mat Min Mat Min Exi Min Mat Fac Fac Fac DSF Fac Res DSF Res Acc Slots Evolved 18 | . . . 2 . . . 2 2 2 2 . 2 2 . 2 2 Power 1 | . . . . . . . . . . . . 1 . . . . Propulsion 5 | . . . 2 . . . 1 . 1 . . 1 . . . . Utility 12 | . . . . . . . 1 2 1 2 . . 2 . 2 2 Weapon . | . . . . . . . . . . . . . . . . . Parts Attached 78 | 6 9 2 6 . . . 1 14 4 2 . 5 3 4 9 13 Power 6 | 1 1 . 1 . . . . 1 . . . . . 1 . 1 Engine 3 | 1 1 . 1 . . . . . . . . . . . . . Core 1 | . . . . . . . . 1 . . . . . . . . Reactor 2 | . . . . . . . . . . . . . . 1 . 1 Propulsion 27 | 2 3 1 4 . . . 1 5 2 . . 2 1 . 2 4 Treads 3 | 2 1 . . . . . . . . . . . . . . . Leg . | . . . . . . . . . . . . . . . . . Wheel . | . . . . . . . . . . . . . . . . . Hover . | . . . . . . . . . . . . . . . . . Flight 24 | . 2 1 4 . . . 1 5 2 . . 2 1 . 2 4 Utility 30 | 1 3 1 . . . . . 4 1 2 . 3 2 3 3 7 Device 9 | . 1 1 . . . . . 1 . 1 . 3 . . 1 1 Storage 3 | 1 2 . . . . . . . . . . . . . . . Processor 3 | . . . . . . . . . . 1 . . . . . 2 Hackware 12 | . . . . . . . . 2 1 . . . 2 2 2 3 Protection 3 | . . . . . . . . 1 . . . . . 1 . 1 Artifact . | . . . . . . . . . . . . . . . . . Weapon 15 | 2 2 . 1 . . . . 4 1 . . . . . 4 1 Energy Gun 3 | 1 2 . . . . . . . . . . . . . . . Energy Cannon 1 | . . . . . . . . . . . . . . . 1 . Ballistic Gun 1 | 1 . . . . . . . . . . . . . . . . Ballistic Cannon 2 | . . . . . . . . . . . . . . . 1 1 Launcher 3 | . . . . . . . . 2 . . . . . . 1 . Special Weapon . | . . . . . . . . . . . . . . . . . Impact Weapon 1 | . . . 1 . . . . . . . . . . . . . Slashing Weapon 3 | . . . . . . . . 2 1 . . . . . . . Piercing Weapon 1 | . . . . . . . . . . . . . . . 1 . Special Melee Weapon . | . . . . . . . . . . . . . . . . . Unidentified Prototypes 1 | . . . . . . . . . . . . . . 1 . . Parts Lost 16 | . 4 . 1 . . . . 2 . . . . . 1 . 8 Power 4 | . 2 . . . . . . . . . . . . 1 . 1 Propulsion 7 | . 2 . . . . . . 1 . . . . . . . 4 Utility 4 | . . . . . . . . 1 . . . . . . . 3 Weapon 1 | . . . 1 . . . . . . . . . . . . . Highest Loss Streak 4 | . 3 . 1 . . . . 1 . . . . . 1 . 4 To Critical Strikes . | . . . . . . . . . . . . . . . . . Average Backups 7 | 2 5 3 4 5 5 5 5 9 9 8 8 9 9 9 9 8 Power . | . . . . . . . . . . 1 1 . . . . . Propulsion 1 | . 2 1 . 1 1 1 . 1 1 2 2 1 2 3 2 2 Utility 3 | . 1 1 2 3 3 3 3 5 4 3 3 5 4 3 5 4 Weapon 1 | . 1 . . 1 1 1 1 1 2 2 2 2 2 2 1 2 Tool/Special . | . . . . . . . . . . . . . . . . . Unused Backups 17 | . 5 . 1 . 1 . . 2 1 . . . . 1 1 5 Power . | . . . . . . . . . . . . . . . . . Propulsion 3 | . 2 . 1 . . . . . . . . . . . . . Utility 10 | . 1 . . . 1 . . 2 1 . . . . 1 1 3 Weapon 4 | . 2 . . . . . . . . . . . . . . 2 Tool/Special . | . . . . . . . . . . . . . . . . . Average Slot Usage (%) 86 | . 94 71 82 77 77 77 80 84 86 92 94 93 90 90 89 88 Engine 4 | . 13 . 8 11 11 11 9 4 . . . . . . . . Core 2 | . . . . . . . . 2 6 5 5 9 9 5 4 4 Reactor 1 | . . . . . . . . . . . . . . 2 4 2 Treads 3 | . 21 . . . . . . . . . . . . . . . Flight 28 | . 5 28 43 44 44 44 45 37 38 35 35 35 31 28 25 23 Device 11 | . 13 14 11 11 11 11 9 9 13 17 17 15 14 13 13 10 Storage 5 | . 10 . . . . . 8 7 6 5 5 5 4 4 4 4 Processor 2 | . . . . . . . . . . 3 5 5 4 4 4 10 Hackware 10 | . . . . . . . . 10 12 11 11 10 15 19 20 20 Protection 1 | . . . . . . . . . . . . . . . 4 6 Energy Gun 3 | . 17 14 7 . . . . . . . . . . . . . Ballistic Gun 2 | . 10 14 2 . . . . . . . . . . . . . Impact Weapon 2 | . . . 8 11 11 11 9 3 . . . . . . . . Slashing Weapon 2 | . . . . . . . . 5 7 11 11 10 9 9 3 . Peak Build Rating 145 | 6 8 12 17 16 17 17 21 40 54 58 58 77 94 108 121 145 Average Rating 59 | 4 6 10 16 16 16 17 19 29 48 57 58 71 86 97 114 131 On Entrance 42 | . 6 5 12 16 16 17 17 21 40 54 58 58 77 94 108 121 Avg Prop Armor Cover (%) 3 | . . . . . . . . . 3 3 . . . 3 . . Naked Turns . | . . . . . . . . . . . . . . . . . Heaviest Build 48 | 12 28 6 11 10 10 10 20 25 23 24 24 30 30 36 44 48 Greatest Support 52 | 40 40 8 16 16 16 16 25 26 31 31 31 39 45 45 50 52 Greatest Overweight (x) 6 | . 6 . . . . . . . . . . . . 1 . . Average Overweight (x) . | . . . . . . . . . . . . . . . . . Largest Inventory Capacity 15 | 8 15 10 5 5 5 5 10 10 10 10 10 10 10 10 10 10 Average Capacity 9 | 6 10 5 5 5 5 5 9 10 10 10 10 10 10 10 10 10 Most Carried 12 | 3 12 5 5 5 5 5 9 10 10 9 8 10 10 10 10 10 Average Carried 7 | 2 5 3 4 5 5 5 5 9 9 8 8 9 9 9 9 9 Final Capacity 10 | 8 5 5 5 5 5 5 10 10 10 10 10 10 10 10 10 10 Final Carried 10 | 3 3 3 5 5 5 5 9 10 10 8 8 10 10 10 10 6 Scrap Suit Usage (%) 4 | . . 72 41 . . . . . 1 . . . . . . . Parts Cannibalized 1 | . . . 1 . . . . . . . . . . . . . Class Distribution -------------------- 31% | Hacker-Scout 28% | Scavenger-Sprinter 18% | Mutant 12% | Hacker-Sprinter 3% | Wizard-Scout 3% | Scrapper Dominant Class ---------------- Mutant | -10/Materials Scrapper | -10/Mines Scavenger-Sprinter | -9/Materials Scavenger-Sprinter | -9/Mines Scavenger-Sprinter | -9/Exiles Scavenger-Sprinter | -8/Mines Scavenger-Sprinter | -8/Materials Scavenger-Sprinter | -7/Factory Hacker-Sprinter | -6/Factory Hacker-Scout | -5/Factory Hacker-Scout | -5/DSF Hacker-Scout | -4/Factory Hacker-Scout | -3/Research Hacker-Scout | -3/DSF Hacker-Scout | -2/Research Hacker-Sprinter | -1/Access Resources | -11 -10 -10 -9 -9 -9 -8 -8 -7 -6 -5 -5 -4 -3 -3 -2 -1 ----------- Run | Yrd Mat Min Mat Min Exi Min Mat Fac Fac Fac DSF Fac Res DSF Res Acc Matter Collected 1516 | 278 139 91 70 . . . 20 145 50 17 . 45 . . 129 532 Remotely . | . . . . . . . . . . . . . . . . . Salvage Created 3102 | 140 521 33 313 115 . . 196 542 555 17 . 62 . . 40 568 Parts 157 | 9 37 2 13 4 . . 7 22 24 4 . 6 . . 6 23 Haulers Intercepted 9 | . 1 . 3 . . . 2 1 1 . . . . . . 1 Recyclers Shooed 6 | . 2 . 2 . . . . 1 1 . . . . . . . Parts Field Recycled . | . . . . . . . . . . . . . . . . . Retrieved Matter . | . . . . . . . . . . . . . . . . . Parts Self-Destructed . | . . . . . . . . . . . . . . . . . Prevented . | . . . . . . . . . . . . . . . . . Parts Restored . | . . . . . . . . . . . . . . . . . Kills | -11 -10 -10 -9 -9 -9 -8 -8 -7 -6 -5 -5 -4 -3 -3 -2 -1 ------- Run | Yrd Mat Min Mat Min Exi Min Mat Fac Fac Fac DSF Fac Res DSF Res Acc Combat Hostiles Destroyed 23 | . 11 2 4 2 . . . 1 . . . . . . . 3 Melee 3 | . . . 3 . . . . . . . . . . . . . Guns 13 | . 11 2 . . . . . . . . . . . . . . AOE 4 | . . . . . . . . 1 . . . . . . . 3 Classes Destroyed 11 | 3 6 . 1 . . . . 1 . . . . . . . . Worker 15 | 1 1 . 1 2 . . 2 3 1 1 . 2 . . 1 . Builder 18 | . 3 . . . . . 1 9 2 . . 1 . . 1 1 Tunneler 5 | 3 . . . . . . 1 . . . . . . . . 1 Hauler 9 | . 1 . 3 . . . 2 1 1 . . . . . . 1 Recycler 11 | 1 1 . 1 . . . . 3 3 . . . . . . 2 Mechanic 1 | . . . 1 . . . . . . . . . . . . . Operator 6 | . 2 . . . . . 1 1 1 . . . . . . 1 Watcher 7 | . 2 . 1 . . . . 1 . . . . . . . 3 Swarmer 11 | . 6 2 3 . . . . . . . . . . . . . Grunt 8 | . 5 . 1 2 . . . . . . . . . . . . Programmer 4 | . . . . . . . . 1 . . . . . . . 3 Best Kill Streak 5 | 4 5 2 5 4 . . 5 4 4 1 . 2 . . 1 4 Combat Bots Only 3 | . 3 2 2 2 . . . 1 . . . . . . . 3 Max Kills in Single Turn 2 | 1 2 1 1 1 . . 1 1 1 1 . 1 . . 1 1 Gunslinging . | . . . . . . . . . . . . . . . . . Exploded 1 | . . . . . . . . 1 . . . . . . . 1 Melee 1 | . . . 1 . . . . . . . . . . . . . Uniques/NPCs Destroyed . | . . . . . . . . . . . . . . . . . Combat | -11 -10 -10 -9 -9 -9 -8 -8 -7 -6 -5 -5 -4 -3 -3 -2 -1 -------- Run | Yrd Mat Min Mat Min Exi Min Mat Fac Fac Fac DSF Fac Res DSF Res Acc Hostile Shots Fired 225 | . 67 14 30 1 . . . 9 . . . 3 1 4 10 86 Missed 101 | . 18 5 12 1 . . . 6 . . . 3 . 1 6 49 Hits 124 | . 49 9 18 . . . . 3 . . . . 1 3 4 37 Projectile 124 | . 49 9 18 . . . . 3 . . . . 1 3 4 37 AOE 1 | . 1 . . . . . . . . . . . . . . . Critical Strikes 3 | . 1 . 1 . . . . . . . . . . . . 1 Damage Taken 2658 | . 755 72 236 27 . . . 115 . . . . 26 136 261 1030 Core 525 | . 190 27 36 17 . . . 31 . . . . . 17 34 173 Absorbed by Shields . | . . . . . . . . . . . . . . . . . Regen/Repaired (Parts) 60 | . . . 2 . . . . 14 10 . . . . . 34 . Core Remaining (%) 88 | 100 . 13 . . . 86 100 95 100 . 100 100 . 98 97 89 Volleys Fired 132 | 18 68 7 1 . . . . 2 . . . . . . 16 20 Largest 2 | 2 2 2 1 . . . . 1 . . . . . . 1 1 Hottest 100 | 60 100 60 40 . . . . . . . . . . . 81 58 Shots Fired 222 | 34 135 14 1 . . . . 2 . . . . . . 16 20 Gun 184 | 34 135 14 1 . . . . . . . . . . . . . Cannon 6 | . . . . . . . . . . . . . . . 1 5 Launcher 32 | . . . . . . . . 2 . . . . . . 15 15 Special . | . . . . . . . . . . . . . . . . . Kinetic 77 | 18 47 7 . . . . . . . . . . . . . 5 Thermal 112 | 16 88 7 1 . . . . . . . . . . . . . Explosive 32 | . . . . . . . . 2 . . . . . . 15 15 Electromagnetic 1 | . . . . . . . . . . . . . . . 1 . Robot Hit Streak 13 | 12 13 4 2 . . . . . . . . . . . . 8 Robot Miss Streak 5 | 2 5 3 . . . . . . . . . . . . . 1 Penetration Max . | . . . . . . . . . . . . . . . . . Secondary Targets 4 | . 3 1 . . . . . . . . . . . . . . Max Gunslinging Chain 1 | . 1 1 . . . . . . . . . . . . . . Shots Hit Robots 202 | 28 71 7 18 4 . . 7 18 16 1 . 5 . . 3 24 Core Hits 91 | 9 33 3 5 1 . . 1 7 8 1 . 1 . . 2 20 Critical Kills 2 | . . . 2 . . . . . . . . . . . . . Critical Parts Destroyed 4 | . . . 2 1 . . . 1 . . . . . . . . Critical Strikes 16 | . 7 . 4 1 . . . 1 1 . . . . . 1 1 Burn 7 | . 7 . . . . . . . . . . . . . . . Smash 6 | . . . 4 1 . . . 1 . . . . . . . . Sever 2 | . . . . . . . . . 1 . . . . . 1 . Impale 1 | . . . . . . . . . . . . . . . . 1 Melee Attacks 252 | . . . 27 5 . . 17 53 35 1 7 7 3 . 49 48 Impact 77 | . . . 27 5 . . 17 28 . . . . . . . . Slashing 117 | . . . . . . . . 25 35 1 7 7 3 . 39 . Piercing 58 | . . . . . . . . . . . . . . . 10 48 Sneak Attacks 54 | . . . 7 2 . . 6 15 10 1 . 3 . . 2 8 Combat Hostiles . | . . . . . . . . . . . . . . . . . Follow-up Attacks 1 | . . . . . . . . . 1 . . . . . . . Damage Inflicted 8193 | 265 814 67 1017 256 . . 646 1649 941 70 . 285 . . 185 1998 Guns 1108 | 265 766 67 10 . . . . . . . . . . . . . Cannons . | . . . . . . . . . . . . . . . . . Explosions 1092 | . 48 . . . . . . 165 . . . . . . . 879 Melee 5993 | . . . 1007 256 . . 646 1484 941 70 . 285 . . 185 1119 Ramming . | . . . . . . . . . . . . . . . . . Kinetic 356 | 144 188 24 . . . . . . . . . . . . . . Thermal 800 | 121 626 43 10 . . . . . . . . . . . . . Explosive 1044 | . . . . . . . . 165 . . . . . . . 879 Electromagnetic . | . . . . . . . . . . . . . . . . . Impact 2970 | . . . 1007 256 . . 646 1061 . . . . . . . . Slashing 1831 | . . . . . . . . 423 941 70 . 285 . . 112 . Piercing 1192 | . . . . . . . . . . . . . . . 73 1119 Highest Corruption 4 | . . . . . . . . . . . . . . . . 4 Average Corruption 3 | . . . . . . . . . . . . . . . . 3 Corruption Purged . | . . . . . . . . . . . . . . . . . Corruption Blocked . | . . . . . . . . . . . . . . . . . Effects 9 | . . . . . . . . . . . . . . . . 9 Message Errors 2 | . . . . . . . . . . . . . . . . 2 Matter Fused 2 | . . . . . . . . . . . . . . . . 2 Energy Discharges 2 | . . . . . . . . . . . . . . . . 2 Data Loss (minor) 2 | . . . . . . . . . . . . . . . . 2 Data Loss (major) 1 | . . . . . . . . . . . . . . . . 1 Overload Shots . | . . . . . . . . . . . . . . . . . Overflow Damage 2184 | . 111 . 443 127 . . 404 752 141 . . 99 . . . 107 Projectiles . | . . . . . . . . . . . . . . . . . Explosions 143 | . 111 . . . . . . 31 . . . . . . . 1 Melee 2041 | . . . 443 127 . . 404 721 141 . . 99 . . . 106 Knockbacks 10 | . . . 5 . . . 1 4 . . . . . . . . Impact 10 | . . . 5 . . . 1 4 . . . . . . . . Kinetic . | . . . . . . . . . . . . . . . . . Secondary . | . . . . . . . . . . . . . . . . . Self-Inflicted Damage 393 | . 210 . . . . . . 88 . . . . . . 57 38 Shots 7 | . 2 . . . . . . 1 . . . . . . 2 2 Rammed 2 | . 2 . . . . . . . . . . . . . . . Targets Rammed 2 | . 2 . . . . . . . . . . . . . . . Kicked . | . . . . . . . . . . . . . . . . . Crushed . | . . . . . . . . . . . . . . . . . Highest Temperature 214 | 60 214 14 2 . . . . 11 1 3 . 148 63 . 36 17 Average Temperature 35 | 29 63 10 1 . . . . 3 1 3 . 61 23 . 8 2 Received Heat Transfer 234 | . 120 . 39 9 . . . 12 . . . . . . 18 36 Siege Activations . | . . . . . . . . . . . . . . . . . Martial Activations . | . . . . . . . . . . . . . . . . . Shielding Activations . | . . . . . . . . . . . . . . . . . Robots Disrupted . | . . . . . . . . . . . . . . . . . Combat Hostiles . | . . . . . . . . . . . . . . . . . Robots Corrupted 17 | . . . 5 2 . . 3 7 . . . . . . . . Combat Hostiles 3 | . . . 1 2 . . . . . . . . . . . . Parts Fried 32 | . . . 6 1 . . 11 14 . . . . . . . . Impact Corruptions 46 | . . . 13 3 . . 9 21 . . . . . . . . Robots Melted . | . . . . . . . . . . . . . . . . . Combat Hostiles . | . . . . . . . . . . . . . . . . . Parts Melted 1 | . 1 . . . . . . . . . . . . . . . Heat Transferred 2469 | 275 2069 100 25 . . . . . . . . . . . . . Parts Sabotaged . | . . . . . . . . . . . . . . . . . Parts Stolen . | . . . . . . . . . . . . . . . . . Parts Stripped . | . . . . . . . . . . . . . . . . . Power Chain Reactions . | . . . . . . . . . . . . . . . . . Alert | -11 -10 -10 -9 -9 -9 -8 -8 -7 -6 -5 -5 -4 -3 -3 -2 -1 ------- Run | Yrd Mat Min Mat Min Exi Min Mat Fac Fac Fac DSF Fac Res DSF Res Acc Maximum Alert Level 2 | . . . 1 . . . . . . . . . . . 1 2 Low Security (%) 85 | 100 100 100 70 100 . 100 100 100 100 100 100 100 100 100 84 39 Level 1 12 | . . . 29 . . . . . . . . . . . 15 45 Level 2 2 | . . . . . . . . . . . . . . . . 14 Level 3 . | . . . . . . . . . . . . . . . . . Level 4 . | . . . . . . . . . . . . . . . . . Level 5 . | . . . . . . . . . . . . . . . . . High Security . | . . . . . . . . . . . . . . . . . Max Security . | . . . . . . . . . . . . . . . . . Peak Influence 578 | 10 185 109 332 177 . . 54 170 106 19 10 10 10 30 294 578 Initial 170 | . . 69 14 117 . . . 21 83 14 6 . . . 16 170 Average 102 | 1 49 77 146 157 . . 29 54 47 14 5 3 2 15 89 285 Influence Increases 3376 | 25 482 50 458 90 . . 138 450 139 5 6 26 14 30 611 852 Destroy 0b10 Robot/C 620 | . 220 40 220 60 . . . 20 . . . . . . . 60 Destroy 0b10 Robot/NC 365 | 25 50 . 40 10 . . 40 90 35 5 . 15 . . 10 45 Destroy Leader 162 | . 56 10 48 10 . . 4 14 2 . . . . . . 18 Allied During Kill 85 | . . . 75 10 . . . . . . . . . . . . Successful Hack 268 | . 7 . 30 . . . 10 60 44 . . 7 10 . 67 33 Disable Machine 180 | . 45 . 15 . . . . 75 15 . . . . . . 30 Destroy Structure 691 | . 29 . . . . . 9 56 13 . 6 4 4 . 354 216 Partial Spotted 195 | . . . 30 . . . 45 15 30 . . . . 15 30 30 Lose Combat Pursuer 810 | . 75 . . . . . 30 120 . . . . . 15 150 420 Influence Decreases 2798 | 25 305 188 195 255 137 . 90 328 278 27 13 28 14 . 356 559 Entered New Map 720 | . . 108 25 185 137 . . 27 87 17 3 2 . . 14 115 Time Decay 1735 | 25 275 80 120 50 . . 70 257 132 10 . 26 14 . 342 334 Lost Part 140 | . 30 . 10 . . . . 20 . . . . . . . 80 Lost Ally 120 | . . . 40 20 . . 20 . . . 10 . . . . 30 Purge Threat 83 | . . . . . . . . 24 59 . . . . . . . Squads Dispatched 31 | . 3 . . . . . . 6 1 . 2 . 1 1 9 8 Investigation 6 | . . . . . . . . 2 1 . . . . . 2 1 Extermination 9 | . . . . . . . . 1 . . . . . . 4 4 Reinforcement 13 | . 3 . . . . . . . . . 2 . 1 1 3 3 Assault . | . . . . . . . . . . . . . . . . . Garrison 3 | . . . . . . . . 3 . . . . . . . . Intercept . | . . . . . . . . . . . . . . . . . Searches Triggered . | . . . . . . . . . . . . . . . . . Construction Impeded . | . . . . . . . . . . . . . . . . . Haulers Reinforced 1 | . . . . . . . . . . . . . . . . 1 Active Scanning Responses . | . . . . . . . . . . . . . . . . . Cargo Convoy Interrupts . | . . . . . . . . . . . . . . . . . Stealth | -11 -10 -10 -9 -9 -9 -8 -8 -7 -6 -5 -5 -4 -3 -3 -2 -1 --------- Run | Yrd Mat Min Mat Min Exi Min Mat Fac Fac Fac DSF Fac Res DSF Res Acc Distress Signals 10 | . 3 . 1 . . . 1 1 . . . 1 . . . 3 Communications Jammed . | . . . . . . . . . . . . . . . . . Distress Signals . | . . . . . . . . . . . . . . . . . Times Spotted 136 | . 35 3 13 3 . . 7 14 1 . . 3 1 1 15 40 Peak Tracking Total 16 | . 6 3 6 3 . . 4 4 2 . . 4 1 1 5 16 Tactical Retreats 28 | . 4 . . . . . 2 5 . . . . . 1 6 10 Traps | -11 -10 -10 -9 -9 -9 -8 -8 -7 -6 -5 -5 -4 -3 -3 -2 -1 ------- Run | Yrd Mat Min Mat Min Exi Min Mat Fac Fac Fac DSF Fac Res DSF Res Acc Traps Triggered 7 | . 1 . . . . . . . . . . . . 2 3 1 Indirectly . | . . . . . . . . . . . . . . . . . Trap Hack Attempts . | . . . . . . . . . . . . . . . . . Triggered . | . . . . . . . . . . . . . . . . . Disarmed . | . . . . . . . . . . . . . . . . . Reprogrammed . | . . . . . . . . . . . . . . . . . Reused . | . . . . . . . . . . . . . . . . . Traps Extracted . | . . . . . . . . . . . . . . . . . Installed . | . . . . . . . . . . . . . . . . . Triggered . | . . . . . . . . . . . . . . . . . Machines | -11 -10 -10 -9 -9 -9 -8 -8 -7 -6 -5 -5 -4 -3 -3 -2 -1 ---------- Run | Yrd Mat Min Mat Min Exi Min Mat Fac Fac Fac DSF Fac Res DSF Res Acc Machines Disabled 12 | . 3 . 1 . . . . 5 1 . . . . . . 2 Max in Single Turn 4 | . 3 . . . . . . 4 1 . . . . . . 1 Garrison Access 3 | . . . . . . . . . . . . . . . 1 2 Energy Cycler 1 | . . . . . . . . . . . . . . . . 1 Machines Repaired . | . . . . . . . . . . . . . . . . . Machines Dismantled . | . . . . . . . . . . . . . . . . . Machines Sabotaged . | . . . . . . . . . . . . . . . . . Overloaded Fab Kills . | . . . . . . . . . . . . . . . . . Hacking | -11 -10 -10 -9 -9 -9 -8 -8 -7 -6 -5 -5 -4 -3 -3 -2 -1 --------- Run | Yrd Mat Min Mat Min Exi Min Mat Fac Fac Fac DSF Fac Res DSF Res Acc Machines Accessed 54 | . 2 . 4 . 1 . 3 9 5 1 . 5 3 . 11 10 Terminals 35 | . 2 . 4 . . . 2 6 2 1 . 4 2 . 6 6 Fabricators 1 | . . . . . . . . . . . . . . . 1 . Repair Stations 4 | . . . . . . . . 1 2 . . . . . 1 . Recycling Units 2 | . . . . . . . . . . . . . . . 1 1 Scanalyzers 6 | . . . . . . . 1 1 1 . . 1 . . 1 1 Garrison Access 5 | . . . . . . . . 1 . . . . 1 . 1 2 Total Hacks 151 | . 5 . 12 . 1 . 7 23 14 2 . 8 9 . 40 30 Successful 70 | . 1 . 4 . 1 . 3 12 7 1 . 4 2 . 21 14 Failed 80 | . 4 . 8 . . . 4 11 7 1 . 3 7 . 19 16 Catastrophic 14 | . 1 . 1 . . . 2 3 1 . . . 2 . 1 3 Database Lockouts 1 | . . . . . . . . . . . . 1 . . . . Manual 71 | . . . 7 . 1 . 3 9 8 . . 6 3 . 23 11 Terminals 106 | . 5 . 12 . . . 5 16 9 2 . 7 5 . 24 21 Fabricators 2 | . . . . . . . . . . . . . . . 2 . Repair Stations 10 | . . . . . . . . 2 4 . . . . . 4 . Recycling Units 4 | . . . . . . . . . . . . . . . 3 1 Scanalyzers 16 | . . . . . . . 2 2 1 . . 1 . . 6 4 Garrison Access 12 | . . . . . . . . 3 . . . . 4 . 1 4 Terminal Hacks 32 | . 1 . 3 . 1 . 1 8 2 1 . 3 1 . 7 4 Record 1 | . . . 1 . . . . . . . . . . . . . Prototype ID Bank 8 | . . . . . . . . 1 . . . 1 . . 6 . Open Door 1 | . . . . . . . . . . . . . . . . 1 Open DSF 2 | . . . . . . . . . . 1 . . 1 . . . Level Access Points 5 | . . . 1 . . . . 1 1 . . 1 . . 1 . Branch Access Points 3 | . 1 . . . . . 1 . . . . . . . . 1 Machine Index 1 | . . . . . . . . 1 . . . . . . . . Unreport Threat 3 | . . . . . . . . 2 1 . . . . . . . Maintenance Status 1 | . . . . . . . . 1 . . . . . . . . Recall Extermination 2 | . . . . . . . . . . . . . . . . 2 Hauler Manifests 1 | . . . . . . . . 1 . . . . . . . . Registered Components 3 | . . . 1 . . . . 1 . . . 1 . . . . Proto ID Catalog 1 | . . . . . 1 . . . . . . . . . . . Fabricator Hacks 1 | . . . . . . . . . . . . . . . 1 . Network Status 1 | . . . . . . . . . . . . . . . 1 . Repair Station Hacks 8 | . . . . . . . . 2 3 . . . . . 3 . Scan Component 4 | . . . . . . . . 1 1 . . . . . 2 . Repair 3 | . . . . . . . . 1 1 . . . . . 1 . Refit 1 | . . . . . . . . . 1 . . . . . . . Recycling Unit Hacks 1 | . . . . . . . . . . . . . . . . 1 Retrieve Components 1 | . . . . . . . . . . . . . . . . 1 Scanalyzer 12 | . . . . . . . 2 . 1 . . 1 . . 5 3 Insert Component 4 | . . . . . . . . . 1 . . . . . . 3 Retrieve Study 8 | . . . . . . . 2 . . . . 1 . . 5 . Garrison Access Hacks 3 | . . . . . . . . . . . . . . . 1 2 Seal Access 3 | . . . . . . . . . . . . . . . 1 2 Unauthorized Hacks 13 | . . . 1 . . . . 2 1 . . . 1 . 4 4 Terminals 12 | . . . 1 . . . . 2 1 . . . 1 . 3 4 Assimilate 2 | . . . . . . . . 1 . . . . . . . 1 Botnet 7 | . . . 1 . . . . . 1 . . . 1 . 1 3 Operators 2 | . . . . . . . . 1 . . . . . . 1 . Skim 1 | . . . . . . . . . . . . . . . 1 . Fabricators 1 | . . . . . . . . . . . . . . . 1 . Fabnet 1 | . . . . . . . . . . . . . . . 1 . Repair Stations . | . . . . . . . . . . . . . . . . . Recycling Units . | . . . . . . . . . . . . . . . . . Scanalyzers . | . . . . . . . . . . . . . . . . . Garrison Access . | . . . . . . . . . . . . . . . . . Data Cores Recovered 2 | . . . 1 . . . 1 . . . . . . . . . Used 1 | . . . . . . . 1 . . . . . . . . . Hacking Detections 40 | . 2 . 4 . . . 2 6 3 1 . 3 2 . 8 9 Full Trace Events 6 | . . . . . . . . 2 1 . . . . . 2 1 Feedback Events 1 | . . . . . . . . 1 . . . . . . . . Hackware Fried 1 | . . . . . . . . 1 . . . . . . . . Feedback Blocked 1 | . . . . . . . . . . . . . . . . 1 Robot Schematics Acquired . | . . . . . . . . . . . . . . . . . Robots Built . | . . . . . . . . . . . . . . . . . Authchips . | . . . . . . . . . . . . . . . . . Time . | . . . . . . . . . . . . . . . . . Total Robot Build Rating . | . . . . . . . . . . . . . . . . . Part Schematics Acquired . | . . . . . . . . . . . . . . . . . Parts Built . | . . . . . . . . . . . . . . . . . Authchips . | . . . . . . . . . . . . . . . . . Time . | . . . . . . . . . . . . . . . . . Total Part Build Rating . | . . . . . . . . . . . . . . . . . Part Studies Acquired 8 | . . . . . . . 2 . . . . 1 . . 5 . Parts Repaired 3 | . . . . . . . . 1 1 . . . . . 1 . Time 77 | . . . . . . . . 13 44 . . . . . 20 . Parts Recycled . | . . . . . . . . . . . . . . . . . Recycled Matter . | . . . . . . . . . . . . . . . . . Retrieved Matter . | . . . . . . . . . . . . . . . . . Retrieved Components 1 | . . . . . . . . . . . . . . . . 1 Parts Scanalyzed . | . . . . . . . . . . . . . . . . . Part Schematics Acquired . | . . . . . . . . . . . . . . . . . Parts Damaged . | . . . . . . . . . . . . . . . . . Bothacking | -11 -10 -10 -9 -9 -9 -8 -8 -7 -6 -5 -5 -4 -3 -3 -2 -1 ------------ Run | Yrd Mat Min Mat Min Exi Min Mat Fac Fac Fac DSF Fac Res DSF Res Acc Used RIF Installer . | . . . . . . . . . . . . . . . . . Robots Hacked 1 | . . . . . . . . . . . . . . . . 1 Non-combat . | . . . . . . . . . . . . . . . . . Combat 1 | . . . . . . . . . . . . . . . . 1 Robot Hacks Applied . | . . . . . . . . . . . . . . . . . Relay Couplers Released . | . . . . . . . . . . . . . . . . . Fabnet Peak Effective % 3 | . . . . . . . . . . . . . . . . 3 Autooverrided 1 | . . . . . . . . . . . . . . . . 1 Robots Rewired 1 | . . . . . . . . . . 1 . . . . . . Allies Hacked 2 | . . . . . . . . . . . . . . . . 2 Hacks Repelled . | . . . . . . . . . . . . . . . . . Allies | -11 -10 -10 -9 -9 -9 -8 -8 -7 -6 -5 -5 -4 -3 -3 -2 -1 -------- Run | Yrd Mat Min Mat Min Exi Min Mat Fac Fac Fac DSF Fac Res DSF Res Acc Total Allies 10 | . . 5 . . . . . 1 . 1 . . . . . 3 Largest Group 5 | . . 5 5 2 2 1 1 1 1 1 1 . . . . 3 Highest-Rated Group 191 | . . 82 82 47 47 16 16 10 10 49 49 . . . . 191 Highest-Rated Ally 82 | . . 31 31 31 31 16 16 10 10 49 49 . . . . 82 Total Orders 1 | . . . . . . . . . 1 . . . . . . . STAY 1 | . . . . . . . . . 1 . . . . . . . Ally Attacks 67 | . . . 49 8 . . 3 . . . . . . . . 7 Total Damage 751 | . . . 496 106 . . 32 . . . . . . . . 117 Kills 10 | . . . 8 1 . . 1 . . . . . . . . . Allies Corrupted 1 | . . . . . . . . . . . . . . . . 1 Allies Melted . | . . . . . . . . . . . . . . . . . Intel | -11 -10 -10 -9 -9 -9 -8 -8 -7 -6 -5 -5 -4 -3 -3 -2 -1 ------- Run | Yrd Mat Min Mat Min Exi Min Mat Fac Fac Fac DSF Fac Res DSF Res Acc Active Infowar (turns) 3057 | . 668 44 . . . . . 220 290 25 33 102 45 53 835 742 Optics 710 | . . . . . . . . . . . . . . . . 710 Terrain 1394 | . . . . . . . . . . 25 33 102 45 53 835 301 Structural 2738 | . 668 44 . . . . . 220 290 25 33 102 45 43 835 433 Robot Analysis Total . | . . . . . . . . . . . . . . . . . Derelict Logs Recovered 1 | . . 1 . . . . . . . . . . . . . . Drone Launches . | . . . . . . . . . . . . . . . . . Drone Recoveries . | . . . . . . . . . . . . . . . . . Exploration | -11 -10 -10 -9 -9 -9 -8 -8 -7 -6 -5 -5 -4 -3 -3 -2 -1 ------------- Run | Yrd Mat Min Mat Min Exi Min Mat Fac Fac Fac DSF Fac Res DSF Res Acc Turns Passed 4471 | 121 708 161 241 109 175 93 146 592 290 25 33 102 45 53 835 742 Spaces Moved 7613 | 40 391 229 321 120 216 177 318 1262 574 52 88 361 145 96 1667 1556 Core 2 | 2 . . . . . . . . . . . . . . . . Treads 237 | 38 199 . . . . . . . . . . . . . . . Legs . | . . . . . . . . . . . . . . . . . Wheels . | . . . . . . . . . . . . . . . . . Hover . | . . . . . . . . . . . . . . . . . Flight 7374 | . 192 229 321 120 216 177 318 1262 574 52 88 361 145 96 1667 1556 Fastest Speed 18 | 50 37 37 31 31 31 31 28 24 20 20 20 18 19 24 23 20 Average Speed 30 | 154 107 37 31 31 31 31 28 27 23 22 20 18 20 26 23 23 Slowest Speed 520 | 160 520 37 31 31 31 31 28 28 24 23 20 20 24 99 24 32 Overloaded Moves 7 | . . . . . . . . . . . . . . . . 7 Propulsion Burnouts . | . . . . . . . . . . . . . . . . . Robots Hopped 52 | . 6 4 2 . . . . 2 4 . . 6 1 3 10 14 Potential Cave-ins 3 | . . . . . . . . . . . . . . . 3 . Cave-ins Triggered . | . . . . . . . . . . . . . . . . . Exploration Rate (%) 39 | 4 67 65 24 31 62 49 40 36 21 3 75 11 6 91 42 43 Regions Visited 16 Branch Regions 4 Pre-discovered Areas 1 | . . 1 . . . . . . . . . . . . . . Known Exits Taken 8 | . 1 . . . . 1 . 1 1 1 . 1 1 . 1 . Unknown Exits Taken 6 | 1 . 1 1 1 1 . 1 . . . . . . . . . Scrap Searched 2 | . . 2 . . . . . . . . . . . . . . Spaces Dug 155 | . . . . . . . 9 26 13 . 3 2 2 . 62 38 Terrain Destroyed 382 | . 30 . . . . . 9 61 13 . 3 2 2 . 164 98 Melee 123 | . . . . . . . 9 26 13 . 3 2 2 . 38 30 Projectile 3 | . . . . . . . . . . . . . . . . 3 AOE 256 | . 30 . . . . . . 35 . . . . . . 126 65 Terrain Rammed . | . . . . . . . . . . . . . . . . . Walls Destroyed . | . . . . . . . . . . . . . . . . . Machines Disabled . | . . . . . . . . . . . . . . . . . Actions | -11 -10 -10 -9 -9 -9 -8 -8 -7 -6 -5 -5 -4 -3 -3 -2 -1 --------- Run | Yrd Mat Min Mat Min Exi Min Mat Fac Fac Fac DSF Fac Res DSF Res Acc Total 9092 | 66 542 289 414 182 323 214 344 1429 679 63 94 379 155 120 2004 1795 Wait 928 | . 63 49 52 58 106 38 2 85 63 8 2 6 . 4 234 158 Move 7495 | 39 378 220 316 119 215 176 317 1257 565 51 87 349 142 89 1647 1528 Hop 48 | . 6 4 2 . . . . 2 4 . . 5 1 3 9 12 Pick Up 54 | 3 3 2 5 . 1 . 6 9 6 . . 3 3 3 6 4 Fast Attach 32 | 6 7 . 1 . . . . 4 1 . . . 2 1 4 6 Attach 32 | . 3 2 2 . . . 2 4 3 2 . 2 1 1 1 9 Detach 10 | . 4 1 . . . . . . . . . . . 1 . 4 Swap 37 | . 7 1 4 . . . . 7 1 . . 4 . 2 8 3 Drop 44 | . 1 3 4 . 1 . . 10 4 . . 3 4 3 9 2 Fire 132 | 18 68 7 1 . . . . 2 . . . . . . 16 20 Melee 241 | . . . 27 5 . . 17 49 32 1 5 7 2 . 48 48 Ram . | . . . . . . . . . . . . . . . . . Kick . | . . . . . . . . . . . . . . . . . Crush 2 | . 2 . . . . . . . . . . . . . . . Escape Stasis 36 | . . . . . . . . . . . . . . 13 22 1 Rewire 1 | . . . . . . . . . . 1 . . . . . . Trap . | . . . . . . . . . . . . . . . . . Miscellaneous . | . . . . . . . . . . . . . . . . . Route ------- -11/Scrapyard -10/Materials (discovered 3 exits: *Mat / *Min / [*Sub]) -10/Mines -9/Materials (discovered 5 exits: Mat x3 / [*Min] / [*Sto]) -9/Mines -9/Exiles -8/Mines -8/Materials (discovered 2 exits: *Fac x2) -7/Factory (discovered 4 exits: *Fac x4) -6/Factory (discovered 4 exits: *Fac x4) -5/Factory -5/DSF -4/Factory (discovered 4 exits: *Res x4) -3/Research -3/DSF -2/Research (discovered 3 exits: *Acc x3) -1/Access (discovered 2 exits: [*Sur] / Com) To Epsilon Eridani History --------- Turn | Location | Event 7 | -11/Scrapyard | Discovered new exit (range 14) 122 | -11/Scrapyard | Entered Materials 227 | -10/Materials | Discovered new exit (range 7) 304 | -10/Materials | Core integrity fell below 50% 314 | -10/Materials | Build established: Mutant 317 | -10/Materials | Identified exit to Mines 670 | -10/Materials | Discovered new exit (range 14) 822 | -10/Materials | Derelicts attacked the area 830 | -10/Materials | Entered Mines 842 | -10/Mines | Core integrity fell below 20% 847 | -10/Mines | Lost 3 parts (1p2n) 864 | -10/Mines | Found a Scrap Suit stashed away for nefarious purposes 866 | -10/Mines | Found Scrap Suit 918 | -10/Mines | Learned location of Zion (-6) 937 | -10/Mines | Discovered new exit (range 14) 942 | -10/Mines | Assisted by bots powering up and referring to "LRC-V3" 991 | -10/Mines | Entered Materials 991 | -9/Materials | Accompanied by 5 allies 991 | -9/Materials | Evolved 2 slots: Propulsion x2 996 | -9/Materials | Led the pair of lost Derelicts to an unsafe place 1052 | -9/Materials | Identified exit to Materials 1129 | -9/Materials | Discovered new exit (range 16) 1155 | -9/Materials | Discovered new exit (range 15) 1232 | -9/Materials | Entered Mines 1232 | -9/Mines | Accompanied by 3 allies 1257 | -9/Mines | Met a Derelict bent on vengeance 1282 | -9/Mines | Deemed a non-threat by the Exiles lab entrance 1282 | -9/Mines | Discovered new exit (range 5) 1298 | -9/Mines | Build established: Scavenger-Sprinter 1341 | -9/Mines | Entered Exiles 1341 | -9/Exiles | Accompanied by 2 allies 1365 | -9/Exiles | Met 8R-AWN 1371 | -9/Exiles | Led the pair of lost Derelicts to a safe place 1384 | -9/Exiles | Met EX-HEX 1393 | -9/Exiles | Met EX-BIN 1397 | -9/Exiles | Aligned with FarCom system 1397 | -9/Exiles | Given EX-Vault access code 1405 | -9/Exiles | Opened EX-Vault 1407 | -9/Exiles | Found Trap Reconfigurator 1415 | -9/Exiles | Warned to stay clear of 0b10 Research branches 1420 | -9/Exiles | Exiles lab attacked by MAIN.C 1435 | -9/Exiles | Discovered new exit (range 14) 1516 | -9/Exiles | Left Exiles lab with Trap Reconfigurator 1516 | -9/Exiles | Entered Mines 1516 | -8/Mines | Accompanied by 1 ally 1570 | -8/Mines | Discovered exit to Materials (range 5) 1609 | -8/Mines | Entered Materials 1609 | -8/Materials | Accompanied by 1 ally 1609 | -8/Materials | Evolved 2 slots: Propulsion x1, Utility x1 1660 | -8/Materials | Discovered new exit (range 8) 1752 | -8/Materials | Discovered new exit (range 6) 1755 | -8/Materials | Entered Factory 1755 | -7/Factory | Evolved 2 slots: Utility x2 1786 | -7/Factory | Identified exit to Factory 1841 | -7/Factory | Repaired Flight Unit+ 2054 | -7/Factory | Hacking Suite fried by hacking feedback 2347 | -7/Factory | Entered another Factory area 2347 | -6/Factory | Accompanied by 1 ally 2347 | -6/Factory | Evolved 2 slots: Propulsion x1, Utility x1 2410 | -6/Factory | Repaired Xenon Bombardment Thruster 2473 | -6/Factory | Identified exit to Factory 2637 | -6/Factory | Entered another Factory area 2637 | -5/Factory | Evolved 2 slots: Utility x2 2645 | -5/Factory | Identified exit to DSF 2662 | -5/Factory | Entered DSF 2662 | -5/DSF | Accompanied by 1 ally 2681 | -5/DSF | Additional patrols routed to DSF 2688 | -5/DSF | Discovered new exit (range 12) 2695 | -5/DSF | Entered Factory 2695 | -4/Factory | Evolved 2 slots: Power x1, Propulsion x1 2707 | -4/Factory | Identified exit to Research 2792 | -4/Factory | Central database locked down 2797 | -4/Factory | Entered Research 2797 | -3/Research | Evolved 2 slots: Utility x2 2842 | -3/Research | Identified exit to DSF 2842 | -3/Research | Entered DSF 2863 | -3/DSF | Discovered new exit (range 15) 2864 | -3/DSF | Additional patrols routed to DSF 2895 | -3/DSF | Entered Research 2895 | -2/Research | Evolved 2 slots: Utility x2 2916 | -2/Research | Build established: Hacker-Scout 2943 | -2/Research | Spotted B-90 Cyclops 3442 | -2/Research | Repaired Impulse Thruster 3547 | -2/Research | Identified exit to Access 3730 | -2/Research | Entered Access 3730 | -1/Access | Evolved 2 slots: Utility x2 3745 | -1/Access | Found Prototype Launcher 3747 | -1/Access | Found Prototype Launcher 3775 | -1/Access | Identified Com. Tesla Bomb Launcher (x2) 3873 | -1/Access | Spotted B-99 Colossus 3880 | -1/Access | Identified exit to Command 4085 | -1/Access | Lost 4 parts (1p2n1u) 4382 | -1/Access | Lost 3 parts (2n1u) 4428 | -1/Access | Watched by a mysterious "MATRIX" hacker. 4461 | -1/Access | Energy Cycler disabled 4471 | -1/Access | Discovered new exit (range 6) 4472 | *** | Escaped! Last Messages --------------- 04385_ ALERT: Potential suspicious activity detected, Programmers report to Access Zone 5A. 04385_ Connecting with Terminal... >>Recall(Extermination) Establishing remote squad link... Recalled extermination squad G1E9C9QHZZ. >>Recall(Extermination) Establishing remote squad link... Recalled extermination squad TFCSL718GU. 04411_ System corrupted: Substantial component data lost. 04428_ Connecting with Garrison Access... >>Seal Access door sealed. U pH33l L1K3 j00'r3 b31N' W47Ch3D, pRoB48Ly ku2 j0o 4R3. 04461_ ALERT: Power surge detected, dispatching additional patrols. 04461_ Energy Cycler explodes. 04465_ K-01 Serf cleans the Terminal. 04471_ Connecting with Terminal... 04471_ The Access Shell folds into the floor. 04471_ EXIT=FOUND Map ----- +----------------------------------------------------+ | ???????????????????????????? # | | ?????????????????????????????? # | | ??????????????????????????????? # ###+# | | ???????????????????????????????? # # | | ?????????????????????????????????? / # = | | ?????????????????????????????????? # # | | ?????????????????????????????????? # # | | ?????????????????????????????????? # # | | ?????????????????????????????????? # # | | ???????? ################## # | | ????????#######+#################### ###"# | | ??????? kw | | ??????? k | | ???????????########## ""##################+ | | ??????????? ####### ""################ | | ???????????????????## ""##????????????## | | ???????????????????## T##????????????## | | ???????????????????## ""##????????????## | | ??????????????????### ""###???????????## | | ??????????????????### ""###???????????## | | ??????????????????## ##???????????## | | ??????????????Y???### ###???????????## | | ??????????????????### ###???????????## | | ???????????????????## ##????????????## | | ???????????????????## ##????????????## | | ???????????????????## @" ##????????????## | | ???????????????????## "" ##????????????##### | | ???????????????????## ##????????????##### | | ???????????????????## ##????????????????# | | ???????????????????## ##????????????????? | | ???????????????????##""""""""""##????????????????? | | ???????????????????##"????????"##????????????????? | | ?????????????????????????????????????????????????? | | ?????????????????????????????????????????????????? | | ?????????????????????????????????????????????????? | | ??????????????????????BB????BB???????????????????? | | ??????????????????????BB????BB???????????????????? | | ?????????????????????????????????????????????????? | | ?????????????????????????????????????????????????? | | ?????????????????????????????????????????????????? | | ?????????????????????????????????????????????????? | | ?????????????????????????????????????????????????? | | ?????????????????????????????????????????????????? | | ?????????????????????????????????????????????????? | | ?????????????????????????????????????????????????? | | ?????????????????????????????????????????????????? | | ?????????????????????????????????????????????????? | | ?????????????????????????????????????????????????? | | ?????????????????????????????????????????????????? | | ?????????????????????????????????????????????????? | +----------------------------------------------------+ Best States ------------- Heat Dissipation 52 Energy Generation 31 Energy Capacity 250 Matter Stores 300 Matter Capacity 300 Sight Range 22 Terrain Scan Range 24 Terrain Scan Density 210 Armor Coverage 300 Utility Shielding 33 Evasion (%) 77 Melee Accuracy 8 Recoil Reduction 2 Offensive Hacking 42 Defensive Hacking 38 Item Schematics ----------------- None Robot Schematics ------------------ None Fabricated ------------ Nothing Repaired ---------- Flight Unit | 30% | -7/Factory Xenon Bombardment Thruster | 66% | -6/Factory Impulse Thruster | 15% | -2/Research Studied --------- Flight Unit | -8/Materials | Hacked Lgt. Ion Engine | -8/Materials | Hacked Mic. Nuclear Core | -4/Factory | Hacked Field Propulsion Array | -2/Research | Hacked Mic. Antimatter Reactor | -2/Research | Hacked Impulse Thruster | -2/Research | Hacked Q-thruster | -2/Research | Hacked Force Lance | -2/Research | Hacked Alien Tech Used ----------------- None Achievements -------------- None Challenges ------------ None Game ------ Seed RingWaveHumpback Manual? 0 Play Time 01:07:56 Cumulative 206.3 hours Start 2026.04.13 @ 19:55:43 End 2026.04.13 @ 21:03:26 Sessions 1 Manual Loads 0 Difficulty Rogue Special Mode None Game No. 133 Rogue 129 Adventurer 4 Explorer 0 Win Type 0 Total 36 Types 35/0/1/0/0/0/0/0/0/0 Lore% 85 Gallery% 62 Achievement% 57 Wizard Run 0 Options --------- Layout 0 ASCII 0 Keyboard 1 Movement Vi Keybinds 0 Fullscreen 2 Font 18/SmallcapsGlow Map View 76x50 Zoom Use 0% Tactical HUD 1 Map Filters NONE Filters NONE Steam 1 RUN: babe049b-7ee0-46b5-8275-95a729e642eb